Cogmind - Beta 11.1 --- EXPLORER MODE // 2022.05.08 @ 22:07:54 Player: ava-01 Result: Self-destructed Performance ------------- Evolutions (2) 1000 Regions Visited (3) 600 Robots Destroyed (3) 15 Value Destroyed (71) 71 Prototype IDs (1) 20 Alien Tech Used (0) 0 Bonus (200) 200 TOTAL SCORE: 1906 Bonus ------- Pacifist 200 Cogmind --------- Core Integrity 383/550 Matter 25/300 Energy 100/100 System Corruption 0% Temperature Cool (9) Movement Core (200) Ox3 Location -8/Materials Parts ------- > --- POWER (2) -------- (None) > --- PROPULSION (2) --- Aluminum Leg > --- UTILITY (4) ------ Medium Storage Unit Advanced Visual Processing Unit Propulsion Shielding > --- WEAPON (4) ------- (None) > --- INVENTORY (10) --- Light Treads Light Treads Utility Shielding Peak State ------------ > --- POWER ------------ Ion Engine > --- PROPULSION ------- Aluminum Leg Aluminum Leg > --- UTILITY ---------- Medium Storage Unit Advanced Visual Processing Unit Propulsion Shielding > --- WEAPON ----------- Shotgun Shotgun > --- INVENTORY -------- Light Treads Light Treads Utility Shielding [Rating: 12] Favorites ----------- Power Ion Engine Engine Ion Engine Propulsion Aluminum Leg Treads Light Treads Leg Aluminum Leg Utility Propulsion Shielding Storage Medium Storage Unit Processor Advanced Visual Processing Unit Protection Propulsion Shielding Weapon Shotgun Energy Gun Medium Laser Ballistic Gun Shotgun Build | -11 -10 -9 -8 ------- Run | Scr Mat Mat Mat Slots Evolved 5 | . 1 2 2 Power 1 | . 1 . . Propulsion . | . . . . Utility 2 | . . 1 1 Weapon 2 | . . 1 1 Parts Attached 13 | 6 3 4 . Power 2 | 1 . 1 . Engine 2 | 1 . 1 . Core . | . . . . Reactor . | . . . . Propulsion 4 | 2 2 . . Treads 1 | 1 . . . Leg 3 | 1 2 . . Wheel . | . . . . Hover . | . . . . Flight . | . . . . Utility 3 | 2 . 1 . Device . | . . . . Storage 1 | 1 . . . Processor 1 | . . 1 . Hackware . | . . . . Protection 1 | 1 . . . Artifact . | . . . . Weapon 4 | 1 1 2 . Energy Gun 1 | . 1 . . Energy Cannon . | . . . . Ballistic Gun 3 | 1 . 2 . Ballistic Cannon . | . . . . Launcher . | . . . . Special Weapon . | . . . . Impact Weapon . | . . . . Slashing Weapon . | . . . . Piercing Weapon . | . . . . Special Melee Weapon . | . . . . Unidentified Prototypes 1 | . . 1 . Parts Lost 4 | . . . 4 Power 1 | . . . 1 Propulsion 1 | . . . 1 Utility . | . . . . Weapon 2 | . . . 2 Highest Loss Streak 4 | . . . 4 To Critical Strikes 1 | . . . 1 Average Slot Usage (%) 68 | . 77 68 60 Engine 9 | . 12 10 7 Leg 20 | . 25 20 15 Storage 10 | . 12 10 8 Processor 5 | . . 6 8 Protection 10 | . 12 10 8 Ballistic Gun 12 | . 10 12 12 Naked Turns . | . . . . Heaviest Build 22 | 18 20 22 22 Greatest Support 20 | 20 20 20 20 Greatest Overweight (x) 7 | 5 1 1 7 Average Overweight (x) 1 | 1 . 1 1 Largest Inventory Capacity 10 | 10 10 10 10 Average Capacity 9 | 8 10 10 10 Most Carried 7 | 6 6 7 3 Average Carried 4 | 4 4 4 3 Final Capacity 10 | 10 10 10 10 Final Carried 6 | 4 6 3 3 Class Distribution -------------------- 100% | Hacker-Mutant Dominant Class ---------------- Hacker-Mutant | -10/Materials Hacker-Mutant | -9/Materials Hacker-Mutant | -8/Materials Resources | -11 -10 -9 -8 ----------- Run | Scr Mat Mat Mat Matter Collected 102 | . . 102 . Remotely . | . . . . Salvage Created 78 | . . 78 . Parts 6 | . . 6 . Haulers Intercepted . | . . . . Recyclers Shooed 1 | . . . 1 Parts Field Recycled . | . . . . Retrieved Matter . | . . . . Parts Self-Destructed . | . . . . Prevented . | . . . . Kills | -11 -10 -9 -8 ------- Run | Scr Mat Mat Mat Combat Hostiles Destroyed 2 | . . 2 . Guns 2 | . . 2 . Classes Destroyed 3 | . . 3 . Watcher 1 | . . 1 . Swarmer 1 | . . 1 . Sentry 1 | . . 1 . Best Kill Streak 2 | . . 2 . Combat Bots Only 2 | . . 2 . Max Kills in Single Turn 1 | . . 1 . Gunslinging . | . . . . Exploded . | . . . . Melee . | . . . . Uniques/NPCs Destroyed . | . . . . Combat | -11 -10 -9 -8 -------- Run | Scr Mat Mat Mat Damage Taken 727 | . . 233 494 Core 184 | . . 17 167 Absorbed by Shields . | . . . . Redirected to Shielding 45 | . . 14 31 Core Remaining (%) 98 | 100 100 95 . Volleys Fired 11 | . 2 8 1 Largest 2 | . 2 2 1 Hottest 70 | . 70 46 23 Shots Fired 20 | . 3 16 1 Gun 20 | . 3 16 1 Cannon . | . . . . Launcher . | . . . . Special . | . . . . Kinetic 19 | . 2 16 1 Thermal 1 | . 1 . . Explosive . | . . . . Electromagnetic . | . . . . Robot Hit Streak 4 | . 1 3 4 Robot Miss Streak 3 | . . 3 . Penetration Max . | . . . . Secondary Targets . | . . . . Shots Hit Robots 11 | . 1 9 1 Core Hits 5 | . . 5 . Critical Kills . | . . . . Critical Parts Destroyed . | . . . . Critical Strikes . | . . . . Melee Attacks . | . . . . Impact . | . . . . Slashing . | . . . . Piercing . | . . . . Sneak Attacks . | . . . . Combat Hostiles . | . . . . Follow-up Attacks . | . . . . Damage Inflicted 156 | . 14 118 24 Guns 155 | . 14 118 23 Cannons . | . . . . Explosions . | . . . . Melee . | . . . . Ramming 1 | . . . 1 Kinetic 155 | . 14 118 23 Thermal . | . . . . Explosive . | . . . . Electromagnetic . | . . . . Impact . | . . . . Slashing . | . . . . Piercing . | . . . . Highest Corruption 4 | . . 4 . Average Corruption 4 | . . 4 . Corruption Purged . | . . . . Corruption Blocked . | . . . . Effects 3 | . . 3 . Message Errors 2 | . . 2 . Heat Flow Errors 1 | . . 1 . Overload Shots . | . . . . Overflow Damage . | . . . . Projectiles . | . . . . Explosions . | . . . . Melee . | . . . . Knockbacks . | . . . . Impact . | . . . . Kinetic . | . . . . Secondary . | . . . . Self-Inflicted Damage . | . . . . Shots . | . . . . Rammed 1 | . . . 1 Targets Rammed 2 | . . . 2 Kicked 1 | . . . 1 Crushed . | . . . . Highest Temperature 131 | . 9 131 . Average Temperature 47 | . 6 64 . Received Heat Transfer 153 | . . 45 108 Siege Activations . | . . . . Robots Corrupted . | . . . . Combat Hostiles . | . . . . Parts Fried . | . . . . Impact Corruptions . | . . . . Robots Melted . | . . . . Combat Hostiles . | . . . . Parts Melted . | . . . . Heat Transferred . | . . . . Parts Sabotaged . | . . . . Parts Stolen . | . . . . Parts Stripped . | . . . . Power Chain Reactions . | . . . . Missiles Intercepted . | . . . . Alert | -11 -10 -9 -8 ------- Run | Scr Mat Mat Mat Peak Influence 147 | . . 147 59 Initial 44 | . . . 44 Average 27 | . . 42 50 Maximum Alert Level . | . . . . Low Security (%) 100 | 100 100 100 100 Level 1 . | . . . . Level 2 . | . . . . Level 3 . | . . . . Level 4 . | . . . . Level 5 . | . . . . High Security . | . . . . Max Security . | . . . . Squads Dispatched . | . . . . Investigation . | . . . . Extermination . | . . . . Reinforcement . | . . . . Assault . | . . . . Garrison . | . . . . Intercept . | . . . . Searches Triggered . | . . . . Construction Impeded . | . . . . Haulers Reinforced . | . . . . Active Scanning Responses . | . . . . Cargo Convoy Interrupts . | . . . . Stealth | -11 -10 -9 -8 --------- Run | Scr Mat Mat Mat Distress Signals 2 | . . 1 1 Communications Jammed . | . . . . Distress Signals . | . . . . Times Spotted 18 | . 1 9 8 Peak Tracking Total 8 | . 1 5 8 Tactical Retreats 2 | . . 2 . Traps | -11 -10 -9 -8 ------- Run | Scr Mat Mat Mat Traps Triggered . | . . . . Indirectly . | . . . . Trap Hack Attempts . | . . . . Triggered . | . . . . Disarmed . | . . . . Reprogrammed . | . . . . Reused . | . . . . Traps Extracted . | . . . . Installed . | . . . . Triggered . | . . . . Machines | -11 -10 -9 -8 ---------- Run | Scr Mat Mat Mat Machines Disabled . | . . . . Max in Single Turn . | . . . . Machines Sabotaged . | . . . . Garrisons Compromised . | . . . . Overloaded Fab Kills . | . . . . Hacking | -11 -10 -9 -8 --------- Run | Scr Mat Mat Mat Machines Accessed . | . . . . Terminals . | . . . . Fabricators . | . . . . Repair Stations . | . . . . Recycling Units . | . . . . Scanalyzers . | . . . . Garrison Access . | . . . . Total Hacks . | . . . . Successful . | . . . . Failed . | . . . . Catastrophic . | . . . . Database Lockouts . | . . . . Manual . | . . . . Terminals . | . . . . Fabricators . | . . . . Repair Stations . | . . . . Recycling Units . | . . . . Scanalyzers . | . . . . Garrison Access . | . . . . Terminal Hacks . | . . . . Fabricator Hacks . | . . . . Repair Station Hacks . | . . . . Recycling Unit Hacks . | . . . . Scanalyzer . | . . . . Garrison Access Hacks . | . . . . Unauthorized Hacks . | . . . . Terminals . | . . . . Fabricators . | . . . . Repair Stations . | . . . . Recycling Units . | . . . . Scanalyzers . | . . . . Garrison Access . | . . . . Data Cores Recovered . | . . . . Used . | . . . . Hacking Detections . | . . . . Full Trace Events . | . . . . Feedback Events . | . . . . Feedback Blocked . | . . . . Robot Schematics Acquired . | . . . . Robots Built . | . . . . Authchips . | . . . . Time . | . . . . Total Robot Build Rating . | . . . . Part Schematics Acquired . | . . . . Parts Built . | . . . . Authchips . | . . . . Time . | . . . . Total Part Build Rating . | . . . . Parts Repaired . | . . . . Time . | . . . . Parts Recycled . | . . . . Recycled Matter . | . . . . Retrieved Matter . | . . . . Retrieved Components . | . . . . Parts Scanalyzed . | . . . . Part Schematics Acquired . | . . . . Parts Damaged . | . . . . Bothacking | -11 -10 -9 -8 ------------ Run | Scr Mat Mat Mat Used RIF Installer . | . . . . Robots Hacked . | . . . . Non-combat . | . . . . Combat . | . . . . Robot Hacks Applied . | . . . . Relay Couplers Released . | . . . . Fabnet Peak Effective % . | . . . . Robots Rewired . | . . . . Allies Hacked . | . . . . Hacks Repelled . | . . . . Allies | -11 -10 -9 -8 -------- Run | Scr Mat Mat Mat Total Allies . | . . . . Largest Group . | . . . . Highest-Rated Group . | . . . . Highest-Rated Ally . | . . . . Total Orders . | . . . . Ally Attacks . | . . . . Total Damage . | . . . . Kills . | . . . . Allies Corrupted . | . . . . Allies Melted . | . . . . Intel | -11 -10 -9 -8 ------- Run | Scr Mat Mat Mat Robot Analysis Total . | . . . . Derelict Logs Recovered . | . . . . Drone Launches . | . . . . Drone Recoveries . | . . . . Exploration | -11 -10 -9 -8 ------------- Run | Scr Mat Mat Mat Turns Passed 561 | 114 102 255 90 Spaces Moved 282 | 51 73 119 39 Core 42 | 35 . . 7 Treads 16 | 16 . . . Legs 224 | . 73 119 32 Wheels . | . . . . Hover . | . . . . Flight . | . . . . Fastest Speed 50 | 50 120 190 190 Average Speed 174 | 182 123 190 211 Slowest Speed 400 | 300 190 190 400 Overloaded Moves . | . . . . Propulsion Burnouts . | . . . . Robots Hopped . | . . . . Cave-ins Triggered . | . . . . Exploration Rate (%) 11 | 4 17 15 8 Regions Visited 3 Branch Regions . Pre-discovered Areas . | . . . . Known Exits Taken 3 | 1 1 1 . Unknown Exits Taken . | . . . . Scrap Searched . | . . . . Spaces Dug . | . . . . Terrain Destroyed . | . . . . Melee . | . . . . Projectile . | . . . . AOE . | . . . . Terrain Rammed . | . . . . Walls Destroyed . | . . . . Machines Disabled . | . . . . Actions | -11 -10 -9 -8 --------- Run | Scr Mat Mat Mat Total 329 | 71 83 133 42 Wait 9 | 9 . . . Move 279 | 50 72 118 39 Hop . | . . . . Pick Up 10 | 6 3 1 . Fast Attach 4 | 4 . . . Attach 8 | 2 2 4 . Detach 2 | . 1 1 . Swap 1 | . 1 . . Drop 3 | . 2 1 . Fire 11 | . 2 8 1 Melee . | . . . . Ram 1 | . . . 1 Kick 1 | . . . 1 Crush . | . . . . Escape Stasis . | . . . . Rewire . | . . . . Trap . | . . . . Miscellaneous . | . . . . Route ------- -11/Scrapyard -10/Materials -9/Materials -8/Materials History --------- Turn | Location | Event 10 | -11/Scrapyard | Identified exit to Materials 10 | -11/Scrapyard | Discovered exit to Materials (range 15) 115 | -11/Scrapyard | Entered Materials 115 | -10/Materials | Evolved 1 slot: Power x1 173 | -10/Materials | Identified exit to Materials 173 | -10/Materials | Discovered exit to Materials (range 13) 217 | -10/Materials | Entered another Materials area 217 | -9/Materials | Evolved 2 slots: Utility x1, Weapon x1 303 | -9/Materials | Build established: Hacker-Mutant 458 | -9/Materials | Identified exit to Materials 458 | -9/Materials | Discovered exit to Materials (range 7) 472 | -9/Materials | Entered another Materials area 472 | -8/Materials | Evolved 2 slots: Utility x1, Weapon x1 562 | -8/Materials | Self-destructed Last Messages --------------- 00513_ Slug penetrates Wall. 00520_ Penetrated by Slug. 00532_ W-25 Informer distress signal alerts nearby ally. 00533_ Slug penetrates Wall. 00533_ Kicked R-06 Scavenger. 00537_ Penetrated by Slug. 00537_ Critical hit (Destroy). 00537_ Shotgun destroyed. 00543_ Penetrated by Slug. 00544_ S-10 Pest destroyed. 00545_ Slammed into R-06 Scavenger. 00545_ Shotgun broken. 00545_ Destabilizing: Short circuit. 00546_ Penetrated by Slug. 00552_ Ion Engine destroyed. 00556_ Slug penetrates Door. 00558_ Critical hit (Burn: +37). 00558_ Aluminum Leg destroyed. 00559_ Penetrated by Slug. 00559_ Broken Shotgun destroyed. Map ----- +----------------------------------------------------+ | ??????????????????????????????????????????? | | ??????????????????????????????????????????? | | ??????????????????????????????????????????? | | ??????????????????????????????????????????? | | ??????????????????????????????????????????? | | ??????????????????????????????????????????? | | ??????????????????????????????????????????? | | ??????????????????????????????????????????? | | ??????????????????????????????????????????? | | ??????????????????????????????????????????? | | ??????????????????????????????????????????? | | ??????????????????????????????????????????? | | ??????????????????????????????????????????? | | ??????????????????????????????????????????? | | ?????????? ??????????????????????????????? | | ??????????? ?????????????????????????????? | | ???????????# ????"???????????????????????? | | ???????????# ???? ???????????????????????? | | ???????????# ####+##?????????????????????? | | ???????????# "T" ?????????????????????? | | ???????????# ??????????????????????? | | ???????????# Y #??????????????????????? | | ???????????# """ #??????????????????????? | | ???????????# ^"""*Y#??????????????????????? | | ???????????#^^"""gs#??????????????????????? | | ?????# ##### =@#??????????????????????? | | ?????# ] ##?????????????????????? | | ?????# #?????????????????????? | | ?????# s #?????????????????????? | | ?????###+## ###;######?????????????????? | | ??????????###### #?????????????????? | | ???????????????# #?????????????????? | | ???????????????# #?????????????????? | | ???????????????# #?????????????????? | | ???????????????# #?????????????????? | | ???????????????# #?????????????????? | | ???????????????# #?????????????????? | | ???????????????# #?????????????????? | | ???????????????# #?????????????????? | | ???????????????########+#?????????????????? | | ??????????????????????# #?????????????????? | | ??????????????????????# #?????????????????? | | ??????????####+######## ##????????????????? | | ??????????# #########????????? | | ??????????# / ""????? | | ??????????# #########????????? | | ??????????##### #####+##????????????????? | | ??????????????# #?? #????????????????? | | ??????????????# # #????????????????? | | ??????????????# + #????????????????? | +----------------------------------------------------+ Best States ------------- Heat Dissipation 31 Energy Generation 10 Energy Capacity 250 Matter Stores 100 Matter Capacity 300 Sight Range 20 Terrain Scan Density 10 Resistance: KI 35 Resistance: TH 35 Resistance: EX 35 Resistance: EM 35 Resistance: I 35 Resistance: S 35 Resistance: P 35 Propulsion Shielding 33 Evasion (%) 55 Recoil Reduction 1 Offensive Hacking 20 Item Schematics ----------------- None Robot Schematics ------------------ None Fabricated ------------ Nothing Alien Tech Used ----------------- None Achievements -------------- None Challenges ------------ None Game ------ Seed QuantumStealthRail Manual? 0 Play Time 00:13:39 Cumulative 5.8 hours Start 2022.05.08 @ 21:43:01 End 2022.05.08 @ 22:07:54 Sessions 2 Manual Loads 0 Difficulty Explorer Special Mode None Game No. 13 Rogue 0 Adventurer 0 Explorer 13 Win Type - Total 0 Types 0/0/0/0/0/0/0/0/0 Lore% 1 Gallery% 14 Achievement% 9 Wizard Run 0 Options --------- ASCII 0 Keyboard 0 Movement Mouse Keybinds 0 Fullscreen 1 Font 18/SmallcapsGlow Map View 76x50 Tactical HUD 1 Map Filters NONE Filters NONE Steam 1 RUN: 95d9940f-ffde-458f-a5ea-44cc1d8eae7d